Cogmind - Beta 15 @@@ ROGUE MODE // 2025.05.08 @ 15:05:56 Player: Christina Result: Destroyed by Y-45 Defender with Heavy Assault Rifle Performance ------------- Evolutions (2) 1000 Regions Visited (5) 1000 Robots Destroyed (34) 170 Value Destroyed (531) 531 Prototype IDs (0) 0 Alien Tech Used (0) 0 Bonus (85) 85 TOTAL SCORE: 2786 Bonus ------- Follower Combat Kills 85 Cogmind --------- Core Integrity 0/550 Matter 187/300 Energy 98/100 System Corruption 0% Temperature Cool (0) Movement Core (100) Ox1 Location -8/Materials Parts ------- > --- POWER (2) -------- (None) > --- PROPULSION (4) --- (None) > --- UTILITY (2) ------ High-powered Tractor Beam > --- WEAPON (3) ------- Autogun > --- INVENTORY (5) ---- Light Treads Peak State ------------ > --- POWER ------------ Ion Engine Micro Nuclear Core > --- PROPULSION ------- Light Treads Light Treads Aluminum Leg Improved Aluminum Leg > --- UTILITY ---------- Small Storage Unit Small Storage Unit > --- WEAPON ----------- Assault Rifle Assault Rifle > --- INVENTORY -------- Light Ion Engine Light Ion Engine Light Ion Engine Light Ion Engine Light Treads [Rating: 14] Favorites ----------- Power Light Ion Engine Engine Light Ion Engine Power Core Light Nuclear Core Propulsion Aluminum Leg Treads Light Treads Leg Aluminum Leg Wheel Wheel Utility Small Storage Unit Device High-powered Tractor Beam Storage Small Storage Unit Weapon Assault Rifle Energy Gun Medium Laser Ballistic Gun Assault Rifle Ballistic Cannon Improved Light Cannon Slashing Weapon Makeshift Sword Build | -11 -10 -10 -10 -9 -8 ------- Run | Yrd Mat Min Exi Min Mat Slots Evolved 4 | . . . . . 4 Power 1 | . . . . . 1 Propulsion 2 | . . . . . 2 Utility . | . . . . . . Weapon 1 | . . . . . 1 Parts Attached 35 | 10 5 . 2 5 13 Power 9 | 1 2 . . 1 5 Engine 7 | 1 2 . . . 4 Core 2 | . . . . 1 1 Reactor . | . . . . . . Propulsion 11 | 5 2 . . 2 2 Treads 2 | 2 . . . . . Leg 8 | 2 2 . . 2 2 Wheel 1 | 1 . . . . . Hover . | . . . . . . Flight . | . . . . . . Utility 5 | 2 . . 2 . 1 Device 1 | . . . . . 1 Storage 4 | 2 . . 2 . . Processor . | . . . . . . Hackware . | . . . . . . Protection . | . . . . . . Artifact . | . . . . . . Weapon 10 | 2 1 . . 2 5 Energy Gun 2 | . 1 . . . 1 Energy Cannon . | . . . . . . Ballistic Gun 4 | 2 . . . 1 1 Ballistic Cannon 3 | . . . . . 3 Launcher . | . . . . . . Special Weapon . | . . . . . . Impact Weapon . | . . . . . . Slashing Weapon 1 | . . . . 1 . Piercing Weapon . | . . . . . . Special Melee Weapon . | . . . . . . Unidentified Prototypes . | . . . . . . Parts Lost 24 | . . . . 3 21 Power 7 | . . . . 1 6 Propulsion 8 | . . . . 2 6 Utility 2 | . . . . . 2 Weapon 7 | . . . . . 7 Highest Loss Streak 11 | . . . . 3 11 To Critical Strikes . | . . . . . . Average Backups 7 | 2 7 8 8 7 4 Power 3 | 1 3 4 4 3 2 Propulsion 2 | 1 2 3 3 2 1 Utility . | . . . . . . Weapon . | . 1 1 1 . . Tool/Special . | . . . . . . Unused Backups 2 | . . . . 1 1 Power 1 | . . . . 1 . Propulsion 1 | . . . . . 1 Utility . | . . . . . . Weapon . | . . . . . . Tool/Special . | . . . . . . Average Slot Usage (%) 96 | . 100 100 100 99 60 Engine 12 | . 14 14 14 9 12 Core 1 | . . . . 4 2 Leg 26 | . 28 28 28 27 13 Storage 27 | . 28 28 28 28 15 Energy Gun 11 | . 3 14 14 14 4 Ballistic Gun 15 | . 24 14 14 11 8 Peak Build Rating 14 | 7 7 7 7 12 14 Average Rating 7 | 6 6 7 7 8 8 On Entrance 6 | . 7 7 7 7 8 Naked Turns . | . . . . . . Heaviest Build 27 | 17 19 17 17 19 27 Greatest Support 40 | 40 20 20 20 23 23 Greatest Overweight (x) 6 | . 1 . . 5 6 Average Overweight (x) . | . . . . . . Largest Inventory Capacity 8 | 8 8 8 8 8 8 Average Capacity 7 | 7 8 8 8 8 7 Most Carried 8 | 6 8 8 8 8 7 Average Carried 7 | 3 7 8 8 7 3 Final Capacity 8 | 8 8 8 8 8 5 Final Carried 8 | 6 8 8 8 8 1 Class Distribution -------------------- 96% | Mutant Dominant Class ---------------- Mutant | -10/Materials Mutant | -10/Mines Mutant | -10/Exiles Mutant | -9/Mines Gunner | -8/Materials Resources | -11 -10 -10 -10 -9 -8 ----------- Run | Yrd Mat Min Exi Min Mat Matter Collected 932 | 318 298 26 33 149 108 Remotely 52 | . . . . . 52 Salvage Created 1104 | 149 400 26 . 229 300 Parts 70 | 8 35 4 . 14 9 Haulers Intercepted . | . . . . . . Recyclers Shooed 5 | 2 3 . . . . Parts Field Recycled . | . . . . . . Retrieved Matter . | . . . . . . Parts Self-Destructed . | . . . . . . Prevented . | . . . . . . Kills | -11 -10 -10 -10 -9 -8 ------- Run | Yrd Mat Min Exi Min Mat Combat Hostiles Destroyed 16 | . 5 . . 7 4 Guns 16 | . 5 . . 7 4 Classes Destroyed 7 | 3 4 . . . . Worker 8 | 2 4 . . 2 . Builder 1 | . 1 . . . . Tunneler 3 | 1 . 1 . 1 . Recycler 4 | 1 2 . . . 1 Watcher 2 | . 2 . . . . Swarmer 7 | . 3 . . 4 . Grunt 9 | . 2 . . 3 4 Best Kill Streak 6 | 2 4 1 . 6 4 Combat Bots Only 4 | . 3 . . 4 2 Max Kills in Single Turn 1 | 1 1 1 . 1 1 Gunslinging . | . . . . . . Exploded . | . . . . . . Melee . | . . . . . . Uniques/NPCs Destroyed . | . . . . . . Combat | -11 -10 -10 -10 -9 -8 -------- Run | Yrd Mat Min Exi Min Mat Hostile Shots Fired 225 | . 24 . . 31 170 Missed 37 | . 4 . . 5 28 Hits 188 | . 20 . . 26 142 Melee 8 | . . . . 8 . Projectile 180 | . 20 . . 18 142 AOE 1 | . . . . . 1 Critical Strikes 9 | . 1 . . . 8 Damage Taken 3003 | . 179 . . 423 2401 Core 657 | . 24 . . 70 563 Absorbed by Shields . | . . . . . . Core Remaining (%) 81 | 100 . . . 62 . Volleys Fired 111 | 10 44 1 . 28 28 Largest 3 | 2 2 2 . 2 3 Hottest 90 | 40 70 70 . 70 90 Shots Fired 214 | 16 88 2 . 55 53 Gun 201 | 16 88 2 . 55 40 Cannon 13 | . . . . . 13 Launcher . | . . . . . . Special . | . . . . . . Kinetic 166 | 16 78 1 . 27 44 Thermal 48 | . 10 1 . 28 9 Explosive . | . . . . . . Electromagnetic . | . . . . . . Robot Hit Streak 8 | 6 8 2 . 4 6 Robot Miss Streak 7 | 2 7 . . 4 5 Penetration Max . | . . . . . . Secondary Targets 4 | . 1 . . 2 1 Max Gunslinging Chain 1 | . 1 . . 1 1 Shots Hit Robots 112 | 9 43 1 . 30 29 Core Hits 54 | 5 20 1 . 15 13 Critical Kills . | . . . . . . Critical Parts Destroyed . | . . . . . . Critical Strikes 1 | . . . . . 1 Burn 1 | . . . . . 1 Melee Attacks 11 | . . . . 11 . Impact . | . . . . . . Slashing 11 | . . . . 11 . Piercing . | . . . . . . Sneak Attacks . | . . . . . . Combat Hostiles . | . . . . . . Follow-up Attacks . | . . . . . . Damage Inflicted 1656 | 112 613 15 . 447 469 Guns 1376 | 112 613 15 . 335 301 Cannons 168 | . . . . . 168 Explosions . | . . . . . . Melee 106 | . . . . 106 . Ramming 6 | . . . . 6 . Kinetic 1328 | 112 563 15 . 221 417 Thermal 216 | . 50 . . 114 52 Explosive . | . . . . . . Electromagnetic . | . . . . . . Impact . | . . . . . . Slashing 106 | . . . . 106 . Piercing . | . . . . . . Highest Corruption . | . . . . . . Average Corruption . | . . . . . . Corruption Purged . | . . . . . . Corruption Blocked . | . . . . . . Overload Shots . | . . . . . . Overflow Damage . | . . . . . . Projectiles . | . . . . . . Explosions . | . . . . . . Melee . | . . . . . . Knockbacks 2 | . . . . 1 1 Impact 1 | . . . . 1 . Kinetic 1 | . . . . . 1 Secondary . | . . . . . . Self-Inflicted Damage . | . . . . . . Shots . | . . . . . . Rammed 1 | . . . . . 1 Targets Rammed 2 | . . . . 1 1 Kicked 1 | . . . . 1 . Crushed . | . . . . . . Highest Temperature 401 | . 54 9 . 72 401 Average Temperature 96 | . 22 6 . 26 175 Received Heat Transfer 1353 | . 36 . . 21 1296 Effects 6 | . . . . . 6 Shutdowns 5 | . . . . . 5 Short Circuit 1 | . . . . . 1 Siege Activations . | . . . . . . Martial Activations . | . . . . . . Shielding Activations . | . . . . . . Robots Disrupted . | . . . . . . Combat Hostiles . | . . . . . . Robots Corrupted . | . . . . . . Combat Hostiles . | . . . . . . Parts Fried . | . . . . . . Impact Corruptions . | . . . . . . Robots Melted . | . . . . . . Combat Hostiles . | . . . . . . Parts Melted . | . . . . . . Heat Transferred 703 | . 148 . . 333 222 Parts Sabotaged . | . . . . . . Parts Stolen . | . . . . . . Parts Stripped . | . . . . . . Power Chain Reactions . | . . . . . . Alert | -11 -10 -10 -10 -9 -8 ------- Run | Yrd Mat Min Exi Min Mat Maximum Alert Level . | . . . . . . Low Security (%) 100 | 100 100 100 . 100 100 Level 1 . | . . . . . . Level 2 . | . . . . . . Level 3 . | . . . . . . Level 4 . | . . . . . . Level 5 . | . . . . . . High Security . | . . . . . . Max Security . | . . . . . . Peak Influence 105 | 5 105 7 . 80 30 Initial 7 | . . 7 . . 5 Average 14 | 1 29 . . 12 2 Influence Increases 565 | 20 199 5 . 246 95 Destroy 0b10 Robot/C 380 | . 100 . . 200 80 Destroy 0b10 Robot/NC 90 | 20 45 5 . 15 5 Destroy Leader 54 | . 24 . . 20 10 Allied During Kill 11 | . . . . 11 . Lose Combat Pursuer 30 | . 30 . . . . Influence Decreases 565 | 20 178 26 . 231 110 Entered New Map 24 | . . 14 . . 10 Time Decay 456 | 20 178 12 . 201 45 Lost Part 85 | . . . . 30 55 Squads Dispatched 2 | . 1 . . . 1 Investigation . | . . . . . . Extermination . | . . . . . . Reinforcement 2 | . 1 . . . 1 Assault . | . . . . . . Garrison . | . . . . . . Intercept . | . . . . . . Searches Triggered . | . . . . . . Construction Impeded . | . . . . . . Haulers Reinforced . | . . . . . . Active Scanning Responses . | . . . . . . Cargo Convoy Interrupts . | . . . . . . Stealth | -11 -10 -10 -10 -9 -8 --------- Run | Yrd Mat Min Exi Min Mat Distress Signals 5 | . 2 1 . . 2 Communications Jammed . | . . . . . . Distress Signals . | . . . . . . Times Spotted 36 | . 17 . . 8 11 Peak Tracking Total 6 | . 6 . . 4 6 Tactical Retreats 1 | . 1 . . . . Traps | -11 -10 -10 -10 -9 -8 ------- Run | Yrd Mat Min Exi Min Mat Traps Triggered 1 | . 1 . . . . Indirectly . | . . . . . . Trap Hack Attempts . | . . . . . . Triggered . | . . . . . . Disarmed . | . . . . . . Reprogrammed . | . . . . . . Reused . | . . . . . . Traps Extracted . | . . . . . . Installed . | . . . . . . Triggered . | . . . . . . Machines | -11 -10 -10 -10 -9 -8 ---------- Run | Yrd Mat Min Exi Min Mat Machines Disabled . | . . . . . . Max in Single Turn . | . . . . . . Machines Repaired . | . . . . . . Machines Dismantled . | . . . . . . Machines Sabotaged . | . . . . . . Overloaded Fab Kills . | . . . . . . Hacking | -11 -10 -10 -10 -9 -8 --------- Run | Yrd Mat Min Exi Min Mat Machines Accessed 6 | . 2 . 4 . . Terminals 2 | . 2 . . . . Fabricators . | . . . . . . Repair Stations . | . . . . . . Recycling Units . | . . . . . . Scanalyzers . | . . . . . . Garrison Access . | . . . . . . Total Hacks 52 | . 3 . 49 . . Successful 51 | . 2 . 49 . . Failed 1 | . 1 . . . . Catastrophic . | . . . . . . Database Lockouts . | . . . . . . Manual 1 | . . . 1 . . Terminals 3 | . 3 . . . . Fabricators . | . . . . . . Repair Stations . | . . . . . . Recycling Units . | . . . . . . Scanalyzers . | . . . . . . Garrison Access . | . . . . . . Terminal Hacks 51 | . 2 . 49 . . Record 49 | . . . 49 . . Emergency Access Points 1 | . 1 . . . . Locate Traps 1 | . 1 . . . . Fabricator Hacks . | . . . . . . Repair Station Hacks . | . . . . . . Recycling Unit Hacks . | . . . . . . Scanalyzer . | . . . . . . Garrison Access Hacks . | . . . . . . Unauthorized Hacks . | . . . . . . Terminals . | . . . . . . Fabricators . | . . . . . . Repair Stations . | . . . . . . Recycling Units . | . . . . . . Scanalyzers . | . . . . . . Garrison Access . | . . . . . . Data Cores Recovered . | . . . . . . Used . | . . . . . . Hacking Detections 1 | . 1 . . . . Full Trace Events . | . . . . . . Feedback Events . | . . . . . . Feedback Blocked . | . . . . . . Robot Schematics Acquired . | . . . . . . Robots Built . | . . . . . . Authchips . | . . . . . . Time . | . . . . . . Total Robot Build Rating . | . . . . . . Part Schematics Acquired . | . . . . . . Parts Built . | . . . . . . Authchips . | . . . . . . Time . | . . . . . . Total Part Build Rating . | . . . . . . Parts Repaired . | . . . . . . Time . | . . . . . . Parts Recycled . | . . . . . . Recycled Matter . | . . . . . . Retrieved Matter . | . . . . . . Retrieved Components . | . . . . . . Parts Scanalyzed . | . . . . . . Part Schematics Acquired . | . . . . . . Parts Damaged . | . . . . . . Bothacking | -11 -10 -10 -10 -9 -8 ------------ Run | Yrd Mat Min Exi Min Mat Used RIF Installer . | . . . . . . Robots Hacked . | . . . . . . Non-combat . | . . . . . . Combat . | . . . . . . Robot Hacks Applied . | . . . . . . Relay Couplers Released . | . . . . . . Fabnet Peak Effective % . | . . . . . . Robots Rewired . | . . . . . . Allies Hacked . | . . . . . . Hacks Repelled . | . . . . . . Allies | -11 -10 -10 -10 -9 -8 -------- Run | Yrd Mat Min Exi Min Mat Total Allies 2 | . . . . 2 . Largest Group 2 | . . . . 2 1 Highest-Rated Group 47 | . . . . 47 16 Highest-Rated Ally 31 | . . . . 31 16 Total Orders . | . . . . . . Ally Attacks 23 | . . . . 18 5 Total Damage 342 | . . . . 276 66 Kills 3 | . . . . 3 . Allies Corrupted . | . . . . . . Allies Melted . | . . . . . . Intel | -11 -10 -10 -10 -9 -8 ------- Run | Yrd Mat Min Exi Min Mat Active Infowar (turns) . | . . . . . . Robot Analysis Total . | . . . . . . Derelict Logs Recovered 4 | . . 2 . 2 . Drone Launches . | . . . . . . Drone Recoveries . | . . . . . . Exploration | -11 -10 -10 -10 -9 -8 ------------- Run | Yrd Mat Min Exi Min Mat Turns Passed 3410 | 150 670 243 1026 1096 225 Spaces Moved 2400 | 83 429 201 835 774 78 Core 10 | 4 . . . 2 4 Treads 22 | 20 . . . . 2 Legs 2364 | 55 429 201 835 772 72 Wheels 4 | 4 . . . . . Hover . | . . . . . . Flight . | . . . . . . Fastest Speed 50 | 50 120 120 120 120 100 Average Speed 121 | 124 120 120 120 120 158 Slowest Speed 350 | 160 190 120 120 300 350 Overloaded Moves . | . . . . . . Propulsion Burnouts . | . . . . . . Robots Hopped . | . . . . . . Potential Cave-ins . | . . . . . . Cave-ins Triggered . | . . . . . . Exploration Rate (%) 50 | 5 55 51 93 89 11 Regions Visited 5 Branch Regions 3 Pre-discovered Areas 3 | . . 2 1 . . Known Exits Taken . | . . . . . . Unknown Exits Taken 5 | 1 1 1 1 1 . Scrap Searched 1 | . . . . 1 . Spaces Dug . | . . . . . . Terrain Destroyed . | . . . . . . Melee . | . . . . . . Projectile . | . . . . . . AOE . | . . . . . . Terrain Rammed . | . . . . . . Walls Destroyed . | . . . . . . Machines Disabled . | . . . . . . Actions | -11 -10 -10 -10 -9 -8 --------- Run | Yrd Mat Min Exi Min Mat Total 2660 | 108 494 201 860 872 125 Wait 72 | . 11 . 22 39 . Move 2395 | 82 428 200 834 773 78 Hop . | . . . . . . Pick Up 14 | 6 2 . . 6 . Fast Attach 19 | 7 2 . . 2 8 Attach 11 | . 1 . . 2 8 Detach 1 | . . . . 1 . Swap 14 | 3 4 . 2 3 2 Drop 10 | . 2 . 2 6 . Fire 111 | 10 44 1 . 28 28 Melee 11 | . . . . 11 . Ram 1 | . . . . . 1 Kick 1 | . . . . 1 . Crush . | . . . . . . Escape Stasis . | . . . . . . Rewire . | . . . . . . Trap . | . . . . . . Miscellaneous . | . . . . . . Route ------- -11/Scrapyard -10/Materials -10/Mines (discovered 2 exits: [*Mat] / *Exi) -10/Exiles (discovered 2 exits: [*Min x2]) -9/Mines (discovered 2 exits: [*Mat x2]) -8/Materials History --------- Turn | Location | Event 13 | -11/Scrapyard | Discovered new exit (range 14) 151 | -11/Scrapyard | Entered Materials 308 | -10/Materials | Build established: Mutant 373 | -10/Materials | Discovered new exit (range 7) 651 | -10/Materials | Derelicts attacked the area 821 | -10/Materials | Entered Mines 830 | -10/Mines | Discovered new exit (range 6) 856 | -10/Mines | Learned location of Zion (-7) 967 | -10/Mines | Assembled infested the area 992 | -10/Mines | Discovered new exit (range 5) 1037 | -10/Mines | Met 8R-AWN 1064 | -10/Mines | Entered Exiles 1090 | -10/Exiles | Discovered new exit (range 15) 1121 | -10/Exiles | Welcomed by 8R-AWN 1146 | -10/Exiles | Met EX-HEX 1300 | -10/Exiles | Met EX-DEC 1469 | -10/Exiles | Discovered new exit (range 12) 1578 | -10/Exiles | Visited The Gauntlet 1794 | -10/Exiles | Met EX-BIN 2090 | -10/Exiles | Entered Mines 2097 | -9/Mines | Met a Derelict bent on vengeance 2183 | -9/Mines | Discovered new exit (range 7) 2393 | -9/Mines | Discovered new exit (range 9) 2515 | -9/Mines | Assisted by bots powering up and referring to "LRC-V3" 2616 | -9/Mines | Received a Mining Laser from a helpful Derelict 2725 | -9/Mines | A weapon hastily lodged in a ceiling crevice suddenly fell to the ground 2789 | -9/Mines | Learned 4 Materials zone layouts 2888 | -9/Mines | Lost 3 parts (1p2n) 3186 | -9/Mines | Entered Materials 3186 | -8/Materials | Accompanied by 1 ally 3186 | -8/Materials | Evolved 4 slots: Power x1, Propulsion x2, Weapon x1 3316 | -8/Materials | Core integrity fell below 50% 3352 | -8/Materials | Lost 11 parts (3p4n4w) 3394 | -8/Materials | Core integrity fell below 20% 3411 | -8/Materials | Destroyed by Y-45 Defender with Heavy Assault Rifle Last Messages --------------- 03394_ U-05 Engineer lays Concrete. 03396_ Sml. Storage Unit destroyed. 03396_ U-05 Engineer lays Concrete. 03397_ Acquired Autogun. 03398_ U-05 Engineer builds a Wall. 03402_ G-47 Trooper destroyed. 03402_ Critical hit (Burn: +37). 03402_ U-05 Engineer lays Concrete. 03404_ K-01 Serf cleans the Nuclear Reactor. 03404_ U-05 Engineer builds a Wall. 03405_ Imp. Light Cannon destroyed. 03406_ Acquired Hpw. Tractor Beam. 03407_ Acquired 33 matter. 03407_ Acquired 3 matter. 03407_ Acquired 9 matter. 03407_ Acquired 4 matter. 03408_ U-05 Engineer builds a Wall. 03409_ M-13 Machinist repairs U-05 Engineer Terrain Scanner. 03411_ G-50 Soldier suffers critical hit (Burn). Map ----- +----------------------------------------------------+ | | | | | | | ????????????????????????????????????? | | ????????????????????????????????????? | | #######??###????????????????????????? | | # #??# ########????##???????????? | | # #??# #????# ???????????? | | # " #### #????# ???????????? | | # """ # # ###### ???????????? | | # """ # # ! # # ???????????? | | # """ # + ! # # ???????????? | | # "" # # !! # # ???????????? | | # """ # # # + ???????????? | | # "" # # "T" # ##???????????? | | # """ # # # #????????????? | | # " + #####+#### #????????????? | | # # #???# #??# #????????????? | | ####### ##??# #??# #????????????? | | ?????# #### ####+#####???????????? | | ?????# ##??#???????????? | | ?????# #??#?G?????????? | | ?????# ### ####" "####????? | | ?????#### Y u ???? | | ????????# m ???? | | ????????# @ """ ??? | | ????????# """ ???? | | ????????# """ #?????? | | ????????# w #???# | | ????????# g #???# | | ????????# """ """ """ #???# | | ????????# """ """ """ #??## | | ????????# """ """ """ #??# | | ????????# #??## | | ????????# #???# | | ????????# """ """ """ ####### | | ######### """ """ """ | | # # """ """ """ | | # # | | # """ # ####### | | # """ # ###############+#######?? | | # """ # # # #?? | | # # # "" # #?? | | # # # "" # """ """ ### | | # # # T" # """ """ + | | # + + "" # """ """ ### | | # # # "" # #?# | | # # # ################# | | ######### ############## # # | | ????# # # | +----------------------------------------------------+ Best States ------------- Heat Dissipation 31 Energy Generation 20 Energy Capacity 300 Matter Stores 300 Matter Capacity 300 Sight Range 16 Terrain Scan Density 10 Evasion (%) 55 Recoil Reduction 2 Item Schematics ----------------- None Robot Schematics ------------------ None Fabricated ------------ Nothing Repaired ---------- Nothing Alien Tech Used ----------------- None Achievements -------------- Librarian Challenges ------------ None Game ------ Seed TrackerChargeSegregator Manual? 0 Play Time 00:41:41 Cumulative 11.5 hours Start 2025.05.08 @ 14:23:16 End 2025.05.08 @ 15:05:56 Sessions 1 Manual Loads 0 Difficulty Rogue Special Mode None Game No. 20 Rogue 20 Adventurer 0 Explorer 0 Win Type - Total 0 Types 0/0/0/0/0/0/0/0/0/0 Lore% 9 Gallery% 10 Achievement% 9 Wizard Run 0 Options --------- Layout 1 ASCII 0 Keyboard 1 Movement Arrows Keybinds 0 Fullscreen 2 Font 32/Tamsyn Map View 50x35 Zoom Use 0% Tactical HUD 1 Map Filters NONE Filters NONE Steam 1 RUN: 9dd84cce-07db-46b3-ae56-c74023e8b228